bitfinex-derivatives/quotes_ETHF0:USTF0_20260214
["timestamp","ask_amount","ask_price","bid_price","bid_amount"]
[1771092368712,2.0061457,2083.2,2082.3,1.97948491]
[1771092381732,2.0061457,2083.2,2082.5,1.96982481]
[1771092381934,0.00376641,2083.2,2082.5,1.96982481]
[1771092389738,4.22504,2083.9,2082.7,1.96982481]
[1771092389739,2.15350991,2083.5,2082.7,1.96982481]
[1771092389942,2.15350991,2083.9,2082.9,1.96982481]
[1771092390843,2.15879042,2083.9,2083.0,1.96982481]
[1771092395843,1.43428068,2083.8,2082.9,1.97386541]
[1771092396047,2.15350991,2083.7,2082.9,1.97386541]
[1771092401150,2.15350991,2083.7,2083.1,2.09290368]
[1771092401445,2.15350991,2083.7,2083.1,1.59680368]
[1771092401845,1.947565,2083.8,2083.3,1.84755384]
[1771092402249,1.947565,2083.8,2083.3,1.34755384]
[1771092405145,1.947565,2083.8,2083.1,1.35391915]
[1771092405343,3.38184568,2083.8,2083.0,1.35391915]
[1771092405547,2.00050277,2083.7,2083.0,1.35391915]
[1771092408349,2.00050277,2083.3,2082.9,0.0040406]
[1771092409453,2.00050277,2083.3,2082.9,1.36964617]
[1771092411863,1.43428068,2083.8,2082.9,1.36964617]
[1771092412061,2.00050277,2083.7,2082.9,1.36964617]
[1771092414759,2.00050277,2083.7,2083.0,1.4214995]
[1771092415157,2.00050277,2083.7,2083.0,0.9214995]
[1771092417466,2.00050277,2083.7,2083.4,0.92189785]
[1771092417766,2.00050277,2083.7,2083.3,0.87483039]
[1771092418064,2.00050277,2083.7,2083.1,2.04922731]
[1771092418258,2.00050277,2083.7,2083.2,0.37481663]
[1771092420164,2.00050277,2083.7,2083.1,1.67441068]
[1771092420362,0.00528051,2083.9,2082.9,0.0040406]
[1771092420363,2.00050277,2083.5,2082.9,0.0040406]
[1771092420562,2.00050277,2083.5,2082.9,0.37453016]
[1771092421464,2.00050277,2083.5,2083.1,0.37093603]
[1771092422069,2.00050277,2083.8,2083.1,0.37093603]
[1771092422466,2.00050277,2083.8,2082.9,0.0040406]
[1771092422467,2.00050277,2083.8,2083.3,0.46854274]
[1771092423270,2.00050277,2084.0,2083.6,3.4752593]
[1771092423568,2.00050277,2084.0,2083.6,1.54097862]
[1771092424172,2.00050277,2084.0,2083.5,1.96705369]
[1771092424367,2.00436627,2084.0,2083.5,1.96705369]
[1771092425967,1.43428068,2083.9,2083.2,0.24012]
[1771092426266,2.00050277,2083.8,2083.0,1.95842992]
[1771092428369,2.00050277,2083.6,2082.9,0.0040406]
[1771092428972,2.00050277,2083.6,2082.9,1.9822663]
[1771092430872,2.00050277,2083.9,2082.9,1.9822663]
[1771092431170,2.00050277,2083.9,2083.1,1.97890254]
[1771092434374,2.00050277,2083.9,2082.9,0.0040406]
[1771092434767,2.00050277,2083.9,2082.9,1.95738954]
[1771092450287,2.00050277,2083.9,2082.9,0.0040406]
[1771092450892,1.96227592,2083.5,2082.9,0.0040406]
[1771092451283,1.25540111,2083.4,2082.5,2.19354894]
[1771092451484,1.96227592,2083.3,2082.5,2.19354894]
[1771092452392,1.96227592,2083.3,2082.5,2.19835287]
[1771092453696,1.96227592,2083.1,2082.5,0.00480393]
[1771092453892,1.96227592,2083.1,2082.5,1.95815287]
[1771092454086,1.96227592,2083.5,2082.7,1.95334894]
[1771092454897,1.96227592,2083.5,2082.9,1.95334894]
[1771092461003,1.96227592,2083.5,2082.6,1.96975261]
[1771092463401,1.96227592,2083.5,2082.5,2.0339204]
[1771092475016,2.16830332,2083.3,2082.5,2.0339204]
[1771092476815,2.16830332,2083.3,2082.5,0.00480393]
[1771092478518,2.16830332,2083.3,2082.5,2.05017587]
[1771092487015,2.16830332,2083.3,2082.5,0.00480393]
[1771092487215,2.16830332,2083.3,2082.5,2.05017587]
[1771092491519,2.16830332,2083.3,2082.5,0.00480393]
[1771092491922,2.16830332,2083.3,2082.5,2.05017587]
[1771092497823,2.06607024,2083.4,2082.7,2.07531245]
[1771092499728,2.06607024,2083.5,2082.7,2.07531245]
[1771092500729,6.05107024,2083.6,2082.9,2.06363983]
[1771092500930,2.06607024,2083.7,2082.9,2.06363983]
[1771092501427,2.06607024,2083.9,2082.9,2.06363983]
[1771092501628,2.06993374,2084.0,2083.2,2.06363983]
[1771092502524,0.0038635,2084.0,2083.2,2.30375983]
[1771092502718,2.06607024,2084.3,2083.5,2.06574424]
[1771092503524,2.06607024,2084.7,2083.5,2.06574424]
[1771092503724,2.07225072,2084.7,2083.5,2.06574424]
[1771092506430,2.07225072,2084.7,2083.7,2.00467563]
[1771092506924,2.07225072,2084.7,2083.9,2.00542494]
[1771092508126,2.07225072,2084.7,2083.8,0.24005]
[1771092508332,2.07225072,2084.7,2083.8,2.24609727]
[1771092510731,2.07225072,2084.7,2083.8,2.00604727]
[1771092510932,2.07225072,2084.7,2083.3,2.06731606]
[1771092515735,2.07225072,2084.7,2083.4,0.2401]
[1771092515941,2.07225072,2084.7,2083.5,2.04980948]
[1771092518448,2.07225072,2084.7,2083.4,0.2401]
[1771092518644,2.07225072,2084.7,2083.4,2.28297126]
[1771092531061,2.07225072,2084.7,2083.9,2.01136163]
[1771092531364,2.07225072,2084.7,2084.1,2.01136163]
[1771092531556,2.07225072,2084.7,2084.1,2.01694158]
[1771092531762,2.07225072,2084.7,2084.1,1.51694158]
[1771092533961,2.20249559,2085.1,2084.5,1.52210139]
[1771092534869,2.20249559,2085.1,2084.3,1.52310551]
[1771092535168,2.20788261,2085.1,2084.3,1.52310551]
[1771092535964,2.20788261,2085.1,2084.1,0.00557995]
[1771092535965,2.20249559,2084.9,2084.1,1.49957208]
[1771092536269,2.20249559,2084.7,2084.1,0.00557995]
[1771092536861,2.20249559,2084.7,2084.1,1.50054948]
[1771092538166,2.20249559,2085.0,2084.3,1.49643426]
[1771092539971,2.20249559,2085.0,2084.1,1.52150841]
[1771092540363,1.43283908,2084.8,2084.1,1.52150841]
[1771092540570,2.20249559,2084.7,2084.1,0.00557995]
[1771092542477,2.20249559,2084.7,2084.1,1.47684962]
[1771092544276,2.20249559,2084.7,2084.3,1.49641522]
[1771092549177,2.20249559,2084.7,2084.1,1.46222243]
[1771092551676,2.20249559,2085.0,2084.1,1.46222243]
[1771092551875,2.20249559,2085.0,2084.5,1.47887342]
[1771092555780,2.18341656,2084.9,2084.2,1.70794454]
[1771092556579,2.18341656,2084.7,2084.1,0.00557995]
[1771092556882,2.18341656,2084.5,2083.7,1.70831035]
[1771092558082,2.18341656,2084.5,2083.7,1.71177923]
[1771092561586,2.18341656,2084.5,2083.7,0.24352888]
[1771092562691,2.18341656,2084.1,2083.3,1.41654686]
[1771092563186,1.43283908,2084.0,2083.2,0.24012]
[1771092563389,2.18341656,2083.9,2083.2,0.24012]
[1771092563686,1.43283908,2083.8,2083.2,0.00388565]
[1771092563990,2.18341656,2083.7,2082.8,1.35489093]
[1771092564787,2.18341656,2083.7,2082.8,1.35852965]
[1771092564988,2.18341656,2083.7,2082.8,0.00363872]
[1771092565388,2.18341656,2083.7,2082.8,1.3588167]
[1771092567787,2.18341656,2083.7,2083.0,1.30806626]
[1771092568786,2.18341656,2083.7,2082.8,1.31200612]
[1771092570391,2.18341656,2083.7,2083.0,1.3607937]
[1771092570693,2.18341656,2083.7,2082.8,0.00363872]
[1771092571490,2.18341656,2083.5,2082.8,0.00363872]
[1771092571691,2.18869948,2083.5,2082.8,0.00363872]
[1771092579304,2.18869948,2083.5,2082.8,1.32104043]
[1771092586795,2.18869948,2083.5,2082.8,0.00363872]
[1771092590905,2.18869948,2083.5,2082.0,1.31003941]
[1771092591811,2.18869948,2083.5,2082.0,1.31427725]
[1771092592208,2.1808451,2083.3,2082.0,1.31427725]
[1771092592712,2.1808451,2083.3,2082.4,1.31488023]
[1771092598623,2.1808451,2083.3,2082.1,1.33619452]
[1771092598920,2.1808451,2083.1,2082.0,0.00423784]
[1771092599120,2.1808451,2082.8,2081.6,1.33634697]
[1771092599420,2.1808451,2082.8,2081.4,1.34058481]
[1771092599616,2.1808451,2082.6,2081.4,1.34058481]
[1771092600025,2.1808451,2082.5,2081.1,1.38085668]
[1771092600219,2.1808451,2082.5,2081.1,1.38487893]
[1771092600420,2.1808451,2082.3,2081.1,1.38487893]
[1771092601721,2.1808451,2082.3,2081.3,1.38103112]
[1771092602321,2.1808451,2082.8,2081.5,1.34024902]
[1771092602613,2.1808451,2082.8,2081.9,1.34024902]
[1771092604023,2.1808451,2082.8,2081.4,1.3716364]
[1771092605820,2.1808451,2082.8,2081.3,1.38937623]
[1771092606027,5.76678217,2082.7,2081.2,1.62971623]
[1771092606227,2.1808451,2082.4,2081.1,0.00402225]
[1771092606422,2.1808451,2082.3,2081.1,1.39339848]
[1771092609226,2.1808451,2082.3,2081.1,1.63375848]
[1771092614938,2.02986714,2082.8,2081.7,1.34145254]
[1771092619232,2.02986714,2082.8,2081.9,1.35947269]
[1771092620343,2.02986714,2082.8,2081.8,0.24028]
[1771092620641,2.02986714,2082.8,2081.8,1.60609111]
[1771092622644,2.02986714,2082.8,2081.8,0.24028]
[1771092625345,2.02986714,2082.8,2081.5,1.36607827]
[1771092627046,2.02986714,2082.8,2081.7,1.36738882]
[1771092630051,2.02986714,2082.8,2081.6,0.2403]
[1771092630447,2.02986714,2082.8,2081.6,1.60584769]
[1771092631264,5.7880853,2082.7,2081.6,1.60584769]
[1771092631558,2.02986714,2082.6,2081.6,1.60584769]
[1771092645080,2.02986714,2082.6,2081.6,0.2403]
[1771092645381,2.02986714,2082.6,2081.6,1.61872868]
[1771092649680,2.02986714,2082.6,2081.4,10.06711847]
[1771092649681,2.12989111,2082.4,2081.2,1.35712314]
[1771092649981,2.12989111,2082.2,2081.2,1.35712314]
[1771092652786,2.12989111,2082.1,2081.2,1.35712314]
[1771092653086,2.12989111,2082.1,2081.1,0.24438225]
[1771092653584,2.12989111,2082.1,2081.1,1.23394746]
[1771092659790,2.12989111,2082.4,2081.3,1.23075964]
[1771092660693,2.12989111,2082.4,2081.4,0.99049383]
[1771092660888,2.12989111,2082.4,2081.6,0.99057198]
[1771092661292,2.12989111,2082.5,2081.6,0.99057198]
[1771092661488,2.12989111,2082.6,2081.8,0.99057198]
[1771092661687,2.12989111,2083.1,2082.2,0.97758095]
[1771092662488,2.12989111,2083.4,2082.2,0.97758095]
[1771092663590,2.12989111,2083.2,2081.8,0.977657]
[1771092663788,2.12989111,2083.0,2081.8,0.977657]
[1771092668595,2.12989111,2083.0,2082.0,1.08264003]
[1771092668797,2.12989111,2083.0,2082.2,1.08271099]
[1771092669297,2.12989111,2083.4,2082.1,0.24025]
[1771092669493,2.12989111,2083.4,2082.1,1.32296099]
[1771092691305,2.12989111,2083.4,2082.2,0.98733349]
[1771092691509,2.12989111,2083.4,2082.4,0.98733349]
[1771092696910,2.12989111,2083.4,2082.6,0.96841871]
[1771092697110,2.12989111,2083.4,2082.6,0.97288804]
[1771092706620,2.12989111,2083.4,2082.6,0.00446933]
[1771092709217,3.99028292,2083.5,2082.6,0.00446933]
[1771092709218,2.12763619,2083.2,2082.6,0.00446933]
[1771092711526,2.12763619,2083.2,2082.3,1.21140265]
[1771092712527,2.12763619,2083.2,2082.3,1.21482932]
[1771092714323,2.12763619,2083.2,2082.3,0.24364667]
[1771092715735,2.12763619,2083.2,2082.3,0.00342667]
[1771092716032,2.12763619,2083.0,2082.3,0.00342667]
[1771092716326,2.12763619,2083.0,2082.3,0.95439288]
[1771092718131,2.12763619,2083.0,2082.3,0.00342667]
[1771092719434,2.12763619,2083.0,2082.3,0.95002468]
[1771092720233,2.12763619,2083.0,2082.3,0.00342667]
[1771092721134,2.12763619,2083.0,2082.3,0.94905901]
[1771092721835,2.12763619,2083.4,2082.5,0.93092431]
[1771092722224,2.12763619,2083.4,2082.7,0.92973868]
[1771092725038,2.12763619,2083.4,2082.6,0.24019]
[1771092725234,2.12763619,2083.4,2082.6,1.17001542]
[1771092725538,2.12763619,2083.4,2082.7,0.92982542]
[1771092728638,2.12763619,2083.4,2082.6,0.24019]
[1771092729045,2.12763619,2083.4,2082.7,0.93756827]
[1771092731844,2.12763619,2083.4,2082.6,1.17833706]
[1771092732648,2.12763619,2083.4,2082.7,0.93814706]
[1771092740448,2.12763619,2083.4,2082.7,0.93365477]
[1771092745351,2.12763619,2083.4,2082.6,0.24019]
[1771092745352,2.12763619,2083.4,2082.8,1.17880908]
[1771092745552,2.12763619,2083.4,2082.9,0.93864908]
[1771092746051,2.12763619,2083.4,2082.8,0.24016]
[1771092747758,2.12763619,2083.4,2082.8,1.17070136]
[1771092748957,2.12763619,2083.4,2082.9,0.93568452]
[1771092750559,2.12763619,2083.4,2082.8,0.24016]
[1771092750961,2.12763619,2083.4,2082.8,1.16349353]
[1771092757961,2.12763619,2083.4,2082.9,0.92936367]
[1771092758862,2.12763619,2083.4,2082.8,0.24016]
[1771092768064,2.04187418,2083.2,2082.3,0.24364667]
[1771092768869,2.04187418,2083.0,2082.3,0.24364667]
[1771092770576,2.04187418,2083.0,2082.1,15.01009128]
[1771092770577,2.04187418,2083.0,2082.1,3.985]
[1771092770866,2.04187418,2082.8,2082.1,3.985]
[1771092771868,2.04187418,2082.8,2082.1,3.99032541]
[1771092772069,2.04187418,2082.8,2082.3,0.24022]
[1771092772870,2.04187418,2082.8,2082.3,1.40816633]
[1771092775573,2.04187418,2082.8,2082.3,0.24022]
[1771092778178,2.04187418,2082.8,2082.3,1.40154802]
[1771092780276,2.04187418,2083.1,2082.3,1.40154802]
[1771092781275,2.04187418,2083.1,2082.5,1.68974102]
[1771092782076,2.04187418,2083.4,2082.7,1.65211111]
[1771092782277,2.04187418,2083.4,2082.9,2.0670041]
[1771092782475,2.04187418,2083.4,2082.6,0.24019]
[1771092782476,2.04187418,2083.4,2082.7,2.0670041]
[1771092784384,2.04187418,2083.4,2082.9,2.0670041]
[1771092784578,2.0471571,2083.5,2083.1,2.0670041]
[1771092784973,2.0471571,2083.5,2082.8,0.24016]
[1771092785483,2.0471571,2083.5,2082.8,2.3071641]
[1771092786682,2.0471571,2083.5,2082.8,0.24016]
[1771092788081,2.0471571,2083.5,2082.8,2.3071641]
[1771092788283,2.0471571,2083.5,2083.2,2.0670041]
[1771092789989,2.04187418,2083.9,2083.2,2.0670041]
[1771092791084,2.04608435,2083.9,2083.2,2.0670041]
[1771092796594,2.04608435,2083.9,2083.2,2.3071141]
[1771092797788,2.04608435,2083.9,2083.2,0.24011]
[1771092800694,2.04608435,2083.9,2083.2,2.25638862]
[1771092802791,2.04608435,2083.9,2083.2,0.24011]
[1771092803093,2.11816319,2083.7,2083.2,0.24011]
[1771092807802,2.11816319,2083.7,2082.9,2.01627862]
[1771092808299,2.11816319,2083.7,2083.0,2.25641862]
[1771092818604,2.11816319,2083.7,2083.1,2.01627862]
[1771092818807,2.12237336,2083.9,2083.1,2.01627862]
[1771092829910,2.12237336,2083.9,2083.0,0.24014]
[1771092833219,2.0615392,2083.7,2082.7,1.93543763]
[1771092833415,2.0615392,2083.7,2082.6,5.91943763]
[1771092833611,2.0615392,2083.5,2082.6,1.93543763]
[1771092834412,2.0615392,2083.5,2082.5,0.24019]
[1771092836615,2.0615392,2083.5,2082.5,2.17562763]
[1771092847721,2.0615392,2083.5,2082.5,0.24019]
[1771092848723,2.0615392,2083.5,2082.5,2.17562763]
[1771092849523,2.0615392,2083.5,2082.5,0.24019]
[1771092849829,2.0615392,2083.5,2082.5,2.17562763]
[1771092881049,2.03883637,2083.4,2082.5,2.17562763]
[1771092884147,1.25539199,2083.3,2082.5,2.17562763]
[1771092884349,1.79630401,2083.2,2082.5,2.17562763]
[1771092884738,1.79630401,2083.2,2082.5,1.93543763]
[1771092884944,1.79630401,2083.0,2082.4,1.87789919]
[1771092885546,1.79630401,2083.2,2082.5,1.87789919]
[1771092889352,1.79630401,2083.5,2082.5,1.87789919]
[1771092890351,1.79630401,2083.4,2082.5,1.87789919]
[1771092891857,1.79630401,2083.4,2082.7,1.87789919]
[1771092894360,1.79630401,2083.4,2082.6,0.24019]
[1771092894552,1.79630401,2083.4,2082.6,2.11808919]
[1771092896160,1.79630401,2083.4,2082.7,1.87789919]
[1771092897064,1.79630401,2083.2,2082.4,1.87789919]
[1771092897954,1.79630401,2083.0,2082.2,5.86289919]
[1771092898461,1.79630401,2083.0,2082.3,1.87789919]
[1771092900463,1.79630401,2082.8,2082.1,1.8832246]
[1771092901157,1.79630401,2082.6,2082.1,0.00532541]
[1771092901755,1.79630401,2082.6,2082.2,1.87789919]
[1771092902064,1.79630401,2083.1,2082.2,1.87789919]
[1771092902362,1.79630401,2083.1,2082.3,1.25539199]
[1771092902658,1.79630401,2083.1,2082.4,1.87789919]
[1771092904055,1.79630401,2083.0,2082.1,1.2607174]
[1771092904259,1.79630401,2083.0,2082.1,3.13861659]
[1771092904459,1.79630401,2083.0,2082.2,1.87789919]
[1771092912264,1.25539199,2082.9,2082.1,0.00532541]
[1771092912469,1.79630401,2082.8,2082.1,0.00532541]
[1771092912870,1.79630401,2082.8,2082.1,1.78573277]
[1771092914970,1.79630401,2082.8,2082.2,1.78040736]
[1771092920687,1.79630401,2082.8,2082.1,0.00532541]
[1771092920982,1.80948323,2082.4,2081.7,1.78040736]
[1771092921980,1.81487255,2082.4,2081.7,1.78441388]
[1771092923081,1.80948323,2082.2,2081.7,0.00400652]
[1771092923284,1.80948323,2082.2,2081.3,1.78040736]
[1771092924377,1.80948323,2082.2,2081.3,1.78434138]
[1771092924582,1.25539199,2082.1,2081.3,1.78434138]
[1771092924781,1.80948323,2082.0,2081.3,0.00393402]
[1771092925582,1.80948323,2082.0,2081.3,1.78434138]
[1771092926181,1.80948323,2082.0,2081.3,0.00393402]
[1771092927287,1.80948323,2082.0,2081.3,1.78434138]
[1771092927988,1.80948323,2082.0,2081.3,0.00393402]
[1771092928184,1.25539199,2081.9,2081.3,0.00393402]
[1771092928385,1.80948323,2081.8,2081.3,0.00393402]
[1771092928689,1.80948323,2081.8,2081.0,2.02077736]
[1771092929484,1.80948323,2081.8,2081.0,2.02197539]
[1771092930788,1.80948323,2081.8,2081.0,1.78160539]
[1771092930984,1.80948323,2081.6,2081.0,1.78160539]
[1771092932378,1.80948323,2081.8,2081.0,1.78160539]
[1771092932583,1.80948323,2082.2,2081.4,1.78040736]
[1771092933086,1.80948323,2082.2,2081.0,0.00119803]
[1771092933087,1.80948323,2082.2,2081.6,1.78040736]
[1771092938187,1.25539199,2082.1,2081.4,1.78040736]
[1771092938391,1.80948323,2082.0,2081.4,1.78040736]
[1771092938689,3.99038932,2082.4,2081.4,1.78040736]
[1771092938690,1.80948323,2082.2,2081.4,1.78040736]
[1771092939089,1.80948323,2082.2,2081.6,1.78040736]
[1771092939486,1.81487255,2082.4,2081.6,1.78040736]
[1771092940087,1.25539199,2082.3,2081.4,1.78040736]
[1771092940286,1.80948323,2082.2,2081.4,1.78040736]
[1771092949797,1.84003574,2082.4,2081.5,1.7461429]
[1771092950397,0.00538932,2082.4,2081.5,1.7461429]
[1771092951298,0.00538932,2082.4,2081.7,1.7461429]
[1771092953100,1.83464642,2082.6,2081.8,1.7461429]
[1771092953601,1.83464642,2082.8,2081.8,1.7461429]
[1771092954100,1.83962484,2082.8,2081.8,1.7461429]
[1771092961203,1.83962484,2082.8,2081.6,1.9864429]
[1771092963006,1.83464642,2082.6,2081.6,1.9864429]
[1771092963407,1.83464642,2082.5,2081.6,1.7461429]
[1771092963907,1.83464642,2082.5,2081.2,1.7461429]
[1771092965414,1.83464642,2082.2,2081.2,1.7461429]
[1771092966903,1.83464642,2082.2,2081.1,0.24036]
[1771092967104,1.83464642,2081.9,2081.0,1.74734093]
[1771092973309,3.986,2082.1,2081.0,1.74734093]
[1771092973310,1.76126791,2082.0,2081.0,1.74734093]
[1771092973503,1.76126791,2082.0,2081.2,1.73513424]
[1771092982820,1.76126791,2082.0,2081.0,1.73633227]
[1771092992719,1.76126791,2081.9,2081.0,1.73633227]
[1771093003727,0.24023,2082.3,2081.0,1.73633227]
[1771093003728,1.69202264,2082.3,2081.3,1.6451617]
[1771093004328,5.67802264,2082.5,2081.5,1.6451617]
[1771093004729,1.69202264,2082.4,2081.5,1.6451617]
[1771093004930,1.69202264,2082.4,2081.6,1.6451617]
[1771093006434,1.69202264,2082.4,2081.8,1.6451617]
[1771093006635,3.986,2082.5,2081.8,1.6451617]
[1771093007038,1.69202264,2082.6,2081.8,1.6451617]
[1771093012337,1.69700106,2082.8,2082.2,1.6451617]
[1771093013843,0.00497842,2082.8,2082.2,1.6451617]
[1771093014141,0.00497842,2082.8,2082.4,1.6451617]
[1771093017845,1.69202264,2083.3,2082.5,1.25656705]
[1771093018042,1.69202264,2083.3,2082.6,1.6451617]
[1771093018441,1.69202264,2083.1,2082.4,1.6451617]
[1771093018841,1.69547314,2083.1,2082.4,1.64908838]
[1771093025762,0.0034505,2083.1,2082.6,1.6451617]
[1771093026463,1.69547314,2083.1,2082.6,1.6451617]
[1771093027158,1.69547314,2083.1,2082.4,1.64908838]
[1771093027366,1.69202264,2083.0,2082.4,1.64908838]
[1771093039868,1.60504054,2083.1,2082.4,1.64908838]
[1771093040074,0.0034505,2083.1,2082.6,1.60417453]
[1771093040273,1.60504054,2083.1,2082.6,1.60417453]
[1771093041275,1.60159004,2083.8,2082.8,1.60417453]
[1771093041466,1.60159004,2083.6,2082.8,1.60417453]
[1771093041670,1.60159004,2083.6,2083.0,1.60417453]
[1771093041975,5.58759004,2083.8,2083.0,1.60417453]
[1771093042377,1.70332948,2084.1,2083.4,1.25656705]
[1771093042576,1.70332948,2084.1,2083.2,1.25656705]
[1771093043380,1.70687516,2084.1,2083.2,1.25656705]
[1771093044475,1.71113039,2083.9,2083.0,1.25656705]
[1771093044670,1.71113039,2083.7,2082.9,0.24014]
[1771093044874,1.71113039,2083.7,2083.0,0.03035921]
[1771093045875,1.68649993,2084.0,2083.3,0.03021641]
[1771093046075,1.68649993,2084.0,2083.4,1.28564779]
[1771093046374,1.68649993,2084.0,2083.5,0.02908074]
[1771093046979,1.68942193,2084.1,2083.7,0.02920445]
[1771093047180,1.68942193,2084.1,2083.6,0.02920445]
[1771093048382,1.68942193,2084.1,2083.4,1.28452002]
[1771093048579,1.68942193,2084.1,2083.5,0.02795297]
[1771093048784,1.68942193,2084.1,2083.7,0.02795297]
[1771093048974,0.00354568,2084.1,2083.7,0.02795297]
[1771093049784,0.00058356,2084.1,2083.7,0.02795297]
[1771093049978,1.70683633,2084.4,2083.7,0.02795297]
[1771093050282,1.70689701,2084.8,2083.8,0.24005]
[1771093051081,1.71184231,2084.8,2083.8,0.24005]
[1771093065192,1.71184231,2084.8,2084.2,0.24]
[1771093065396,1.71184231,2084.8,2084.2,0.24543907]
[1771093067399,1.18799231,2084.8,2084.4,0.23998]
[1771093067695,1.18799231,2084.8,2084.4,0.69995961]
[1771093068095,1.18799231,2084.8,2084.5,0.45943488]
[1771093068396,1.52270652,2084.9,2084.5,0.45943488]
[1771093069400,1.52668904,2084.9,2084.5,0.45943488]
[1771093069895,1.52668904,2084.9,2084.4,0.23998]
[1771093070398,1.52668904,2084.9,2084.2,0.00543907]
[1771093071192,1.52668904,2084.9,2084.4,0.23998]
[1771093071891,1.52668904,2084.9,2084.4,1.86702811]
[1771093078799,1.52270652,2085.1,2084.4,1.86702811]
[1771093079301,1.52270652,2085.7,2084.8,0.23993]
[1771093079497,1.52270652,2085.7,2084.5,1.67776258]
[1771093079697,1.52270652,2085.5,2084.5,1.67776258]
[1771093079999,1.52782063,2085.5,2084.5,1.67776258]
[1771093081199,1.52782063,2085.5,2084.3,0.23999]
[1771093081406,1.52782063,2085.5,2084.4,1.67776258]
[1771093082399,1.52782063,2085.5,2084.6,1.67776258]
[1771093082601,1.52782063,2085.5,2084.2,3.98743907]
[1771093082602,1.52782063,2085.5,2084.8,1.67776258]
[1771093082902,1.52782063,2085.5,2084.7,0.23995]
[1771093083895,1.52782063,2085.5,2084.3,1.67776258]
[1771093084099,1.52270652,2085.3,2084.3,1.67776258]
[1771093084304,1.52270652,2085.3,2084.5,1.67776258]
[1771093084600,1.52270652,2085.3,2084.4,0.23998]
[1771093084903,1.52270652,2085.3,2084.4,1.91774258]
[1771093088812,1.52270652,2085.3,2084.4,0.23998]
[1771093089510,1.52270652,2085.3,2084.4,1.91774258]
[1771093090307,1.52270652,2085.3,2084.4,0.23998]
[1771093093510,1.52270652,2085.3,2084.4,1.82107472]
[1771093094505,1.52270652,2085.3,2084.3,1.58109472]
[1771093097318,1.52270652,2085.3,2084.2,0.00543907]
[1771093097319,1.6173452,2085.1,2084.2,0.00543907]
[1771093097517,1.6173452,2084.9,2083.9,1.82112472]
[1771093098510,1.6173452,2084.9,2083.9,1.8245428]
[1771093102118,1.6173452,2085.3,2083.9,1.8245428]
[1771093103012,1.6173452,2085.3,2084.2,1.58109472]
[1771093104116,1.6173452,2085.2,2084.1,1.82110472]
[1771093104917,1.6173452,2085.2,2084.1,0.24001]
[1771093105519,1.6173452,2085.2,2084.1,1.82110472]
[1771093108519,1.6173452,2085.2,2084.1,0.24001]
[1771093108815,1.6173452,2084.9,2083.9,0.00341808]
[1771093109024,1.6173452,2084.9,2083.9,1.5845128]
[1771093110529,1.6173452,2084.9,2083.9,1.8245428]
[1771093116638,1.6173452,2085.1,2083.9,1.8245428]
[1771093119135,1.6173452,2085.1,2084.3,0.23998]
[1771093119338,1.6173452,2085.1,2084.4,1.58109472]
[1771093126045,1.6173452,2085.1,2084.3,0.23998]
[1771093126240,1.6173452,2085.1,2084.3,1.87572786]
[1771093127948,1.6173452,2085.1,2084.3,0.23998]
[1771093129549,1.6173452,2085.1,2084.3,1.87572786]
[1771093130850,1.63569868,2085.0,2084.3,1.87572786]
[1771093131450,1.63569868,2085.0,2084.3,0.23998]
[1771093132750,1.63569868,2085.0,2084.1,1.63574786]
[1771093133150,1.63569868,2085.0,2084.3,0.23998]
[1771093134650,1.63569868,2084.8,2083.9,5.62116594]
[1771093134851,1.63569868,2084.8,2084.0,1.63574786]
[1771093135654,1.63569868,2084.8,2084.3,1.63574786]
[1771093142556,5.41465443,2085.3,2084.3,1.63574786]
[1771093142850,1.63569868,2085.1,2084.3,1.63574786]
[1771093150167,1.63569868,2085.1,2084.5,1.63574786]
[1771093152260,1.63569868,2085.1,2084.3,1.63574786]
[1771093152465,1.63569868,2085.0,2084.3,1.63574786]
[1771093155665,1.63569868,2085.0,2084.2,1.67264443]
[1771093155666,1.63569868,2085.0,2084.5,1.60055106]
[1771093156066,1.67489289,2085.4,2084.5,1.60055106]
[1771093156265,1.67489289,2085.2,2084.5,1.60055106]
[1771093157064,1.67489289,2085.2,2084.7,1.60055106]
[1771093157361,1.67489289,2085.4,2084.6,1.67261443]
[1771093157571,1.67489289,2085.4,2084.6,3.27316549]
[1771093158069,1.67489289,2085.4,2084.7,1.60055106]
[1771093161472,1.680007,2085.5,2085.1,1.60055106]
[1771093162968,1.680007,2085.5,2084.9,1.60055106]
[1771093163168,1.680007,2085.5,2084.8,0.23993]
[1771093163671,1.680007,2085.5,2084.8,1.84048106]
[1771093166275,1.680007,2085.5,2084.8,0.23993]
[1771093166472,1.680007,2085.5,2084.8,1.84048106]
[1771093168073,1.680007,2085.5,2084.8,1.60055106]
[1771093168370,1.680007,2085.5,2084.5,1.60055106]
[1771093168573,1.67489289,2085.3,2084.5,1.60055106]
[1771093169774,1.67489289,2085.3,2084.7,1.60055106]
[1771093170074,1.680007,2085.5,2084.7,1.60055106]
[1771093175480,1.67489289,2085.3,2084.7,1.60055106]
[1771093179681,1.67489289,2085.1,2084.3,1.84054106]
[1771093183383,1.67489289,2085.1,2084.5,1.59163197]
[1771093185484,1.67489289,2085.1,2084.1,1.59163197]
[1771093185682,1.67624527,2084.9,2084.1,1.59163197]
[1771093186785,1.67624527,2084.7,2083.9,1.59505005]
[1771093187882,1.67624527,2084.7,2083.9,0.00341808]
[1771093188082,1.67624527,2084.7,2083.9,1.59505005]
[1771093193091,1.67624527,2084.7,2083.9,0.00341808]
[1771093194285,1.67624527,2084.7,2083.9,1.59505005]
[1771093196898,1.67624527,2084.7,2083.9,0.00341808]
[1771093199299,1.67624527,2084.7,2083.9,1.59505005]
[1771093202198,1.67624527,2084.7,2083.9,0.00341808]
[1771093202601,1.67624527,2084.7,2083.9,1.59505005]
[1771093203300,1.67624527,2084.7,2083.9,0.00341808]
[1771093203505,1.67624527,2084.7,2083.6,1.59163197]
[1771093203902,1.67624527,2084.5,2083.6,1.59163197]
[1771093204496,1.67624527,2084.5,2083.6,1.83685072]
[1771093210809,1.67624527,2085.0,2083.6,1.83685072]
[1771093211009,1.67624527,2084.8,2083.9,1.59163197]
[1771093214302,1.64630719,2085.2,2084.1,1.53007555]
[1771093214504,1.64630719,2085.0,2084.1,1.53007555]
[1771093217206,1.64630719,2085.0,2084.2,0.24]
[1771093217402,1.64630719,2085.0,2084.3,1.53007555]
[1771093217806,1.64630719,2085.0,2084.2,1.77007555]
[1771093222015,1.64630719,2085.4,2084.2,1.77007555]
[1771093227810,1.43318235,2084.8,2083.0,5.97743386]
[1771093228012,1.43318235,2083.9,2082.5,1.66474444]
[1771093228216,10.10011235,2083.8,2082.5,1.66474444]
[1771093228416,5.87806235,2083.7,2082.5,1.66474444]
[1771093228613,5.87806235,2083.6,2082.5,1.66474444]
[1771093228918,0.00459796,2083.6,2082.5,1.66826037]
[1771093229110,0.00459796,2083.6,2082.7,1.66422183]
[1771093230020,0.00700914,2083.5,2082.7,1.66422183]
[1771093231320,0.011176,2083.6,2082.8,1.66065221]
[1771093232119,0.011176,2083.6,2082.9,1.66063467]
[1771093232318,0.00459796,2083.6,2082.9,1.66063467]